{"text_format":"1","workbook":"xlsx","n_sheets":1,"sheets":["STOCK 2018"],"not_rendered":{"charts":0,"images":1,"macros":1,"external_links":0,"defined_names":2,"comments":0,"pivot_tables":0},"unopened":[],"bounds":{"document_bytes":16777216,"sheet_cells":100000,"rows_first":2000,"rows_last":500,"rows_between":2000,"halvings":0,"cell_chars":16384,"cell_head_chars":4096},"cells_cut":0,"cells_raw":0,"read":"whole","date_system":"1900"}

{"sheet":"STOCK 2018","index":0,"n_rows":157,"n_cols":39,"rows_kept":157,"cut":false,"hidden":false,"merged":[[3,1,3,3],[11,4,13,4],[6,1,6,2],[7,1,7,2],[11,1,11,2],[12,1,12,2],[13,1,13,2],[8,1,8,2],[0,5,1,5],[14,6,14,8],[14,9,14,13],[15,6,15,8],[15,9,15,11],[15,12,15,13],[7,6,7,8],[12,12,12,13],[11,9,11,13],[6,9,6,11],[7,9,7,11],[12,9,12,11],[11,6,11,8],[12,6,12,8],[6,6,6,8],[6,12,7,13]]}
["2018-03-07",null,null,null,null,"Search"]
[{"$f":"TODAY()","v":"2018-03-18"}]
[]
["Main Search:","brand 1"]
[]
[]
["Item Code",null,null,"رقم الصنف",null,null,"Total ",null,null,{"$f":"COUNTIF(B20:B157, \"*\")","v":138},null,null,{"$f":"ROWS(B20:B157)","v":138}]
["Disc.",{"$f":"IFERROR(VLOOKUP($B$7,'STOCK 2018'!$A$20:$C$157,2,0),\"\")","v":""},null,"الوصف",null,null,"No. of Brands \"عدد الأصناف\"",null,null,{"$f":"SUMPRODUCT((B20:B157<>\"\")/COUNTIF(B20:B157,B20:B157&\"\"))","v":3.9999999999999973}]
["SOUQ CODE",{"$f":"IFERROR(VLOOKUP($B$7,'STOCK 2018'!$A$20:$E$157,5,0),\"\")","v":""},null,"كود سوق"]
[]
[]
["Items Avaliable",{"$f":"COUNTIF(Table1[Final QTY],\">0\")","v":117},null,"متوفر Avaliable",{"$f":"SUM(B12+B13+B14)","v":138},null,"Item Code \"Enter Value\""]
["Items (OOS)",{"$f":"COUNTIF(Table1[Final QTY],\"=0\")","v":18},null,"Not Avaliable غير متوفر",null,null,"Qty Avaliable \"حالة الصنف\"",null,null,{"$f":"IF($J$12<>\"\",SUMPRODUCT(--($J$12=$D$20:$D$157), $J$20:$J$157),\"\")","v":""},null,null,{"$f":"IF(J13>0,\"Avaliable متوفر\",IF(J13=0,\"NOT Avaliable غير متوفر\",\"Missing يوجد نقص\"))","v":"Avaliable متوفر"}]
["Items Missing",{"$f":"COUNTIF(Table1[Final QTY],\"<0\")","v":3},null,"Missing يوجد نقص"]
[null,null,null,null,null,null,"Item Souq Code \"Enter Value\""]
[null,null,null,null,null,null,"Qty Avaliable \"حالة الصنف\"",null,null,{"$f":"IF($J$15<>\"\",SUMPRODUCT(--($J$15=$E$20:$E$157), $J$20:$J$157),\"\")","v":""},null,null,{"$f":"IF(J16>0,\"Avaliable متوفر\",IF(J16=0,\"NOT Avaliable غير متوفر\",\"Missing يوجد نقص\"))","v":"Avaliable متوفر"}]
[]
[]
["air","Brand","Disc.\nالوصف","Item Code","SOUQ Code","Power \"Watt\"","Color","QTY","Total Delivery ","Final QTY","Avaliability","T-1656113","30/01/2018","T-1659089","05/02/2018","T-1659554","05/02/20182","T-666758","11/02/2018","T-1671057","27/02/2018","T-1674250","26/02/2018","Deliver 1671343","11/03/2018","T-1677127","12/03/2018","T-1677128","aaa","T-1678319","aaa2","T-1682444","aaa3","T-1682445","aaa4","T-14","aaa5","T-15","aaa6"]
["item1","Brand 1","Hair Dryer\nمجفف شعر احترافي",null,2724563324417,null,null,24,{"$f":"SUM(L20+N20+P20+R20+T20+V20+X20+Z20+AB20+AD20+AF20+AH20+AJ20+AL20)","v":15},{"$f":"SUM(H20-I20)","v":9},{"$f":"IF(J20>1, \"Avaliable متوفر\", IF(J20=0, \"Not Avaliable غير متوفر\", IF(J20<0, \"Missing يوجد نقص\", \"Poor\")))","v":"Avaliable متوفر"},null,null,null,null,null,null,null,null,null,null,null,null,15]
["item 2","Brand 2","Hair Dryer\nمجفف شعر احترافي",null,2724563329276,null,null,4,{"$f":"SUM(L21+N21+P21+R21+T21+V21+X21+Z21+AB21+AD21+AF21+AH21+AJ21+AL21)","v":4},0,"Not Avaliable غير متوفر",null,null,3,null,null,null,null,null,null,null,null,null,1]
["item3","Brand 1","Hair Dryer\nمجفف شعر احترافي",null,null,null,null,4,0,4,"Avaliable متوفر"]
["item4","Brand 3","Hair Dryer\nمجفف شعر احترافي",null,null,null,null,36,0,36,"Avaliable متوفر"]
["item5","Brand 1","Hair Dryer\nمجفف شعر احترافي",null,null,null,null,8,0,8,"Avaliable متوفر"]
["item6","Brand 1","Hair Dryer\nمجفف شعر احترافي",null,null,null,null,8,0,8,"Avaliable متوفر"]
["item7","Brand 1","Hair Dryer\nمجفف شعر احترافي",null,2724563233078,null,null,8,0,8,"Avaliable متوفر"]
["item8","Brand 1","Hair Dryer\nمجفف شعر احترافي",null,null,null,null,8,0,8,"Avaliable متوفر"]
["item9","Brand 1","Hair Dryer\nمجفف شعر احترافي",2017060925509,null,null,null,68,0,68,"Avaliable متوفر"]
["item10","Brand 1","Hair Dryer\nمجفف شعر احترافي",2014012091930,null,null,null,167,52,115,"Avaliable متوفر",null,null,20,null,null,null,null,null,null,null,20,null,12]
["item11","Brand 1","Hair Dryer\nمجفف شعر احترافي",2016080923502,null,null,null,60,0,60,"Avaliable متوفر"]
["item12","Brand 1","Hair Dryer\nمجفف شعر احترافي",null,null,null,null,131,0,131,"Avaliable متوفر"]
["item13","Brand 1","Hair Dryer\nمجفف شعر احترافي",6915790011881,null,null,null,295,5,290,"Avaliable متوفر",null,null,null,null,null,null,null,null,null,null,null,null,5]
["item14","Brand 1","Hair Dryer\nمجفف شعر احترافي",null,"2724293392694\n2724290176587",null,null,199,120,79,"Avaliable متوفر",null,null,null,null,null,null,120]
["item15","Brand 1","Hair Dryer\nمجفف شعر احترافي",null,null,null,null,35,0,35,"Avaliable متوفر"]
["item16","Brand 1","Hair Dryer\nمجفف شعر احترافي",6906213220010,null,null,null,24,0,24,"Avaliable متوفر"]
["item17","Brand 1","Hair Dryer\nمجفف شعر احترافي",2017070925605,null,null,null,68,0,68,"Avaliable متوفر"]
["item18","Brand 1","Hair Dryer\nمجفف شعر احترافي",2016011924608,null,null,null,48,0,48,"Avaliable متوفر"]
["item19","Brand 1","Hair Dryer\nمجفف شعر احترافي",2016060192294,null,null,null,144,0,144,"Avaliable متوفر"]
["item20","Brand 1","Hair Dryer\nمجفف شعر احترافي",6902007910020,null,null,null,24,12,12,"Avaliable متوفر",null,null,null,null,null,null,null,null,null,null,null,null,12]
["item21","Brand 1","Hair Dryer\nمجفف شعر احترافي",null,null,null,null,24,0,24,"Avaliable متوفر"]
["item22","Brand 1","Hair Dryer\nمجفف شعر احترافي",null,null,null,null,24,15,9,"Avaliable متوفر",null,null,3,null,null,null,null,null,null,null,null,null,12]
["item23","Brand 1","Hair Dryer\nمجفف شعر احترافي",null,null,null,null,24,0,24,"Avaliable متوفر"]
["item24","Brand 1","Hair Dryer\nمجفف شعر احترافي",null,null,null,null,22,0,22,"Avaliable متوفر"]
["item25","Brand 1","Hair Dryer\nمجفف شعر احترافي",null,null,null,null,96,0,96,"Avaliable متوفر"]
["item26","Brand 1","Hair Dryer\nمجفف شعر احترافي",null,null,null,null,78,0,78,"Avaliable متوفر"]
["item27","Brand 2","Hair Dryer\nمجفف شعر احترافي",null,null,null,null,36,0,36,"Avaliable متوفر"]
["item28","Brand 2","Hair Dryer\nمجفف شعر احترافي",2013070915202,null,null,null,9,0,9,"Avaliable متوفر"]
["item29","Brand 2","Hair Dryer\nمجفف شعر احترافي",null,null,null,null,18,0,18,"Avaliable متوفر"]
["item30","Brand 2","Hair Dryer\nمجفف شعر احترافي",null,2724563336151,null,null,24,22,2,"Avaliable متوفر",null,null,9,null,null,null,null,null,1,null,null,null,12]
["item31","Brand 2","Hair Dryer\nمجفف شعر احترافي",9714226380433,null,null,null,12,0,12,"Avaliable متوفر"]
["item32","Brand 2","Hair Dryer\nمجفف شعر احترافي",9714226380426,null,null,null,12,0,12,"Avaliable متوفر"]
["item33","Brand 2","Hair Dryer\nمجفف شعر احترافي",null,2724298833123,null,null,12,12,{"$f":"SUM(H52-I52)","v":0},{"$f":"IF(J52>1, \"Avaliable متوفر\", IF(J52=0, \"Not Avaliable غير متوفر\", IF(J52<0, \"Missing يوجد نقص\", \"Poor\")))","v":"Not Avaliable غير متوفر"},null,null,null,null,null,null,null,null,null,null,null,null,12]
["item34","Brand 2","Hair Dryer\nمجفف شعر احترافي",9714226106538,"2724450574840 \"SEA GREEN\"",null,null,24,12,12,"Avaliable متوفر",null,null,12,null,null,null,null,null,null,null,null,null,null,null,0]
["item35","Brand 2","Hair Dryer\nمجفف شعر احترافي",9714226370663,2724563233054,null,null,12,12,0,"Not Avaliable غير متوفر",3,null,null,null,null,null,null,null,null,null,null,null,null,null,null,null,9]
["item36","Brand 2","Hair Dryer\nمجفف شعر احترافي",null,null,null,null,12,12,0,"Not Avaliable غير متوفر",12]
["item37","Brand 2","Hair Dryer\nمجفف شعر احترافي",null,null,null,null,12,12,0,"Not Avaliable غير متوفر",null,null,12]
["item38","Brand 2","Hair Dryer\nمجفف شعر احترافي",null,null,null,null,105,0,105,"Avaliable متوفر"]
["item39","Brand 2","Hair Dryer\nمجفف شعر احترافي",null,2724563341735,null,null,11,11,0,"Not Avaliable غير متوفر",null,null,null,null,null,null,null,null,null,null,null,null,11]
["item40","Brand 2","Hair Dryer\nمجفف شعر احترافي",null,null,null,null,24,0,24,"Avaliable متوفر"]
["item41","Brand 2","Hair Dryer\nمجفف شعر احترافي",null,2724563236857,null,null,21,15,6,"Avaliable متوفر",null,null,null,null,null,null,null,null,null,null,null,null,15]
["item42","Brand 2","Hair Dryer\nمجفف شعر احترافي",null,null,null,null,9,0,9,"Avaliable متوفر"]
["item43","Brand 2","Hair Dryer\nمجفف شعر احترافي",null,null,null,null,12,0,12,"Avaliable متوفر"]
["item44","Brand 2","Hair Dryer\nمجفف شعر احترافي",9714226370588,null,null,null,12,0,12,"Avaliable متوفر"]
["item45","Brand 2","Hair Dryer\nمجفف شعر احترافي",6920083500010,null,null,null,117,5,112,"Avaliable متوفر",null,null,2,null,null,null,null,null,null,null,null,null,3]
["item46","Brand 2","Hair Dryer\nمجفف شعر احترافي",9714226370526,2724563237342,null,null,5,3,2,"Avaliable متوفر",null,null,null,null,null,null,null,null,null,null,null,null,null,null,3,"2 damage"]
["item47","Brand 2","Hair Dryer\nمجفف شعر احترافي",210032091345,null,null,null,36,0,36,"Avaliable متوفر"]
["item48","Brand 2","Hair Dryer\nمجفف شعر احترافي",null,2724567955815,null,null,23,12,11,"Avaliable متوفر",null,null,12]
["item49","Brand 2","Hair Dryer\nمجفف شعر احترافي",null,null,null,null,23,12,11,"Avaliable متوفر",null,null,12]
["item50","Brand 2","Hair Dryer\nمجفف شعر احترافي",6525378659918,null,null,null,23,12,11,"Avaliable متوفر",null,null,11,null,null,null,null,null,1]
["item51","Brand 2","Hair Dryer\nمجفف شعر احترافي",6525378659917,2724567953200,null,null,23,12,11,"Avaliable متوفر",null,null,12]
["item52","Brand 2","Hair Dryer\nمجفف شعر احترافي",6525378659912,null,null,null,23,0,23,"Avaliable متوفر"]
["item53","Brand 2","Hair Dryer\nمجفف شعر احترافي",null,null,null,null,159,12,147,"Avaliable متوفر",null,null,12]
["item54","Brand 2","Hair Dryer\nمجفف شعر احترافي",6525378699624,2724567955020,null,null,79,12,67,"Avaliable متوفر",null,null,12]
["item55","Brand 2","Hair Dryer\nمجفف شعر احترافي",6525378611114,"2724567954856 \"green\"",null,null,80,12,68,"Avaliable متوفر",null,null,12]
["item56","Brand 2","Hair Dryer\nمجفف شعر احترافي",5526600013301,2724568823649,null,null,20,8,12,"Avaliable متوفر",null,null,null,null,null,null,null,null,null,null,null,null,null,null,8]
["item57","Brand 2","Hair Dryer\nمجفف شعر احترافي",5709557735148,null,null,null,48,12,36,"Avaliable متوفر",null,null,null,null,12]
["item58","Brand 2","Hair Dryer\nمجفف شعر احترافي",6931443806888,null,null,null,50,0,50,"Avaliable متوفر"]
["item59","Brand 2","Hair Dryer\nمجفف شعر احترافي",5526600013318,null,null,null,20,12,8,"Avaliable متوفر",null,null,null,null,12]
["item60","Brand 2","Hair Dryer\nمجفف شعر احترافي",5526600012090,null,null,null,24,12,12,"Avaliable متوفر",null,null,null,null,12]
["item61","Brand 2","Hair Dryer\nمجفف شعر احترافي",6908060911073,null,null,null,24,12,12,"Avaliable متوفر",null,null,null,null,10,null,null,null,2]
["item62","Brand 2","Hair Dryer\nمجفف شعر احترافي",5526600013196,null,null,null,40,12,28,"Avaliable متوفر",null,null,null,null,12]
["item63","Brand 2","Hair Dryer\nمجفف شعر احترافي",5526600013530,null,null,null,24,12,12,"Avaliable متوفر",null,null,null,null,12]
["item64","Brand 2","Hair Dryer\nمجفف شعر احترافي",5526600013516,null,null,null,20,12,8,"Avaliable متوفر",null,null,null,null,12]
["item65","Brand 2","Hair Dryer\nمجفف شعر احترافي",6980016899420,null,null,null,40,12,{"$f":"SUM(H84-I84)","v":28},{"$f":"IF(J84>1, \"Avaliable متوفر\", IF(J84=0, \"Not Avaliable غير متوفر\", IF(J84<0, \"Missing يوجد نقص\", \"Poor\")))","v":"Avaliable متوفر"},null,null,null,null,12]
["item66","Brand 2","Hair Dryer\nمجفف شعر احترافي",5526600013578,2724568823779,null,null,30,{"$f":"SUM(L85+N85+P85+R85+T85+V85+X85+Z85+AB85+AD85+AF85+AH85+AJ85+AL85)","v":24},6,"Avaliable متوفر",null,null,null,null,null,null,null,null,null,null,null,null,null,null,12,null,12]
["item67","Brand 2","Hair Dryer\nمجفف شعر احترافي",5526600013622,2724568824004,null,null,12,12,0,"Not Avaliable غير متوفر",null,null,null,null,null,null,null,null,null,null,null,null,null,null,12]
["item68","Brand 2","Hair Dryer\nمجفف شعر احترافي",856770005055,2724568821539,null,null,57,12,45,"Avaliable متوفر",null,null,null,null,12]
["item69","Brand 2","Hair Dryer\nمجفف شعر احترافي",6923546172663,null,null,null,26,12,14,"Avaliable متوفر",null,null,null,null,12]
["item70","Brand 2","Hair Dryer\nمجفف شعر احترافي",5526600013370,null,null,null,50,12,38,"Avaliable متوفر",null,null,null,null,12]
["item71","Brand 2","Hair Dryer\nمجفف شعر احترافي",6927051443010,null,null,null,296,12,284,"Avaliable متوفر",null,null,null,null,12]
["item72","Brand 2","Hair Dryer\nمجفف شعر احترافي",6925249990063,2724568823502,null,null,120,24,96,"Avaliable متوفر",null,null,null,null,null,null,null,null,12,null,null,null,null,null,12]
["item73","Brand 2","Hair Dryer\nمجفف شعر احترافي",6957768322513,null,null,null,120,12,108,"Avaliable متوفر",null,null,null,null,12]
["item74","Brand 2","Hair Dryer\nمجفف شعر احترافي",6957768322582,null,null,null,120,12,108,"Avaliable متوفر",null,null,null,null,12]
["item75","Brand 2","Hair Dryer\nمجفف شعر احترافي",6927051455075,null,null,null,144,12,132,"Avaliable متوفر",null,null,null,null,12]
["item76","Brand 2","Hair Dryer\nمجفف شعر احترافي",null,null,null,null,179,54,125,"Avaliable متوفر",null,null,null,null,12,null,null,null,null,null,30,null,12]
["item77","Brand 2","Hair Dryer\nمجفف شعر احترافي",6927051420110,null,null,null,168,36,132,"Avaliable متوفر",null,null,null,null,12,null,null,null,null,null,24]
["item78","Brand 2","Hair Dryer\nمجفف شعر احترافي",6171701411014,null,null,null,181,12,169,"Avaliable متوفر",null,null,null,null,12]
["item79","Brand 2","Hair Dryer\nمجفف شعر احترافي",5526600013561,null,null,null,48,12,36,"Avaliable متوفر",null,null,null,null,12]
["item80","Brand 2","Hair Dryer\nمجفف شعر احترافي",null,null,null,null,295,0,295,"Avaliable متوفر"]
["item81","Brand 2","Hair Dryer\nمجفف شعر احترافي",null,null,null,null,8,8,0,"Not Avaliable غير متوفر",null,null,null,null,8]
["item82","Brand 2","Hair Dryer\nمجفف شعر احترافي",5526600013202,null,null,null,12,12,0,"Not Avaliable غير متوفر",null,null,null,null,12]
["item83","Brand 2","Hair Dryer\nمجفف شعر احترافي",6908060370320,2724568822239,null,null,40,12,28,"Avaliable متوفر",null,null,null,null,12]
["item84","Brand 2","Hair Dryer\nمجفف شعر احترافي",5004295620221,2724568825551,null,null,6,6,0,"Not Avaliable غير متوفر",null,null,null,null,6]
["item85","Brand 2","Hair Dryer\nمجفف شعر احترافي",5004295620214,2724568825483,null,null,6,6,0,"Not Avaliable غير متوفر",null,null,null,null,6]
["item86","Brand 2","Hair Dryer\nمجفف شعر احترافي",6922900180375,null,null,null,48,0,48,"Avaliable متوفر"]
["item87","Brand 2","Hair Dryer\nمجفف شعر احترافي",6927051418025,null,null,null,24,12,12,"Avaliable متوفر",null,null,null,null,12]
["item88","Brand 2","Hair Dryer\nمجفف شعر احترافي",6171701411038,"2724568820488 \"White\"\n2724568820488 \"White\"",null,null,240,36,204,"Avaliable متوفر",null,null,null,null,12,null,null,null,null,null,null,null,null,null,12,"white",12,"white"]
["item89","Brand 2","Hair Dryer\nمجفف شعر احترافي",6927051477268,null,null,null,96,18,78,"Avaliable متوفر",null,null,null,null,12,null,null,null,null,null,null,null,6]
["item90","Brand 2","Hair Dryer\nمجفف شعر احترافي",5526600013110,null,null,null,48,12,36,"Avaliable متوفر",null,null,null,null,12]
["item91","Brand 2","Hair Dryer\nمجفف شعر احترافي",6980016899413,null,null,null,80,12,68,"Avaliable متوفر",null,null,null,null,12]
["item92","Brand 2","Hair Dryer\nمجفف شعر احترافي",6908060987115,2724568820259,null,null,48,12,36,"Avaliable متوفر",null,null,null,null,12]
["item93","Brand 2","Steam Sauna Room 1",6927051449012,null,null,null,80,12,68,"Avaliable متوفر",null,null,null,null,12]
["item94","Brand 2","Steam Sauna Room 2",6171701411076,null,null,null,298,0,298,"Avaliable متوفر"]
["item95","Brand 2","Steam Sauna Room 3",6927051431086,null,null,null,80,12,68,"Avaliable متوفر",null,null,null,null,12]
["item96","Brand 2","Steam Sauna Room 4",6965485288050,null,null,null,24,12,12,"Avaliable متوفر",null,null,null,null,12]
["item97","Brand 2","Steam Sauna Room 5",6965485288012,null,null,null,24,12,{"$f":"SUM(H116-I116)","v":12},{"$f":"IF(J116>1, \"Avaliable متوفر\", IF(J116=0, \"Not Avaliable غير متوفر\", IF(J116<0, \"Missing يوجد نقص\", \"Poor\")))","v":"Avaliable متوفر"},null,null,null,null,12]
["item98","Brand 2","Steam Sauna Room 6",6927051442068,null,null,null,79,12,67,"Avaliable متوفر",null,null,null,null,12]
["item99","Brand 2","Steam Sauna Room 7",5526600013448,null,null,null,30,12,18,"Avaliable متوفر",null,null,null,null,12]
["item100","Brand 2","Steam Sauna Room 8",5526600013387,null,null,null,24,12,12,"Avaliable متوفر",null,null,null,null,12]
["item101","Brand 2","Steam Sauna Room 9",5526600013370,null,null,null,24,12,12,"Avaliable متوفر",null,null,null,null,11,null,null,null,1]
["item102","Brand 2","Steam Sauna Room 10",6171701407659,null,null,null,179,12,167,"Avaliable متوفر",null,null,null,null,12]
["item103","Brand 2","Steam Sauna Room 11",5526600013004,null,null,null,24,12,12,"Avaliable متوفر",null,null,null,null,12]
["item104","Brand 2","Steam Sauna Room 12",6927051418087,null,null,null,48,12,36,"Avaliable متوفر",null,null,null,null,12]
["item105","Brand 2","Steam Sauna Room 13",6942872787839,2724568821492,null,null,108,12,96,"Avaliable متوفر",null,null,null,null,12]
["item106","Brand 2","Steam Sauna Room 14",6942872787839,null,null,null,36,12,24,"Avaliable متوفر",null,null,null,null,12]
["item107","Brand 2","Steam Sauna Room 15",6937550900105,"2724568823533\n2724323079311",null,null,120,24,96,"Avaliable متوفر",null,null,null,null,null,null,null,null,null,null,null,null,null,null,12,null,12]
["item108","Brand 2","Steam Sauna Room 16",6937550900013,2724568822918,null,null,120,24,96,"Avaliable متوفر",null,null,null,null,null,null,null,null,null,null,null,null,null,null,12,null,12]
["item109","Brand 2","Steam Sauna Room 17",null,null,null,null,18,0,18,"Avaliable متوفر"]
["item110","Brand 2","Steam Sauna Room 18",9714226105920,2724319033372,null,null,5,10,-5,"Missing يوجد نقص",5,null,null,null,null,null,null,null,null,null,null,null,null,null,5]
["item111","Brand 2","Steam Sauna Room 19",9714226101076,"2724292620132\n2724306704926",null,null,12,12,0,"Not Avaliable غير متوفر",null,null,null,null,null,null,null,null,null,null,null,null,null,null,null,null,12]
["item112","Brand 2","Steam Sauna Room 20",null,null,null,null,30,0,30,"Avaliable متوفر"]
["item113","Brand 2","Steam Sauna Room 21",null,null,null,null,4,0,4,"Avaliable متوفر"]
["item114","Brand 2","Steam Sauna Room 22",null,null,null,null,8,0,8,"Avaliable متوفر"]
["item115","Brand 2","Steam Sauna Room 23",890625488938,null,null,null,388,12,376,"Avaliable متوفر",null,null,null,null,12]
["item116","Brand 2","Steam Sauna Room 24",null,2724320381165,null,null,24,10,14,"Avaliable متوفر",10]
["item117","Brand 5","Steam Sauna Room 25",null,null,null,null,null,12,-12,"Missing يوجد نقص",null,null,null,null,12]
["item118","Brand 5","Steam Sauna Room 26",null,2724292620149,null,null,null,5,-5,"Missing يوجد نقص",null,null,null,null,5]
["item119","Brand 5","Steam Sauna Room 27",null,2724300185684,null,null,0,0,0,"Not Avaliable غير متوفر"]
["item120","Brand 5","Steam Sauna Room 28",null,2724441566984,null,null,0,0,0,"Not Avaliable غير متوفر"]
["item121","Brand 5","Steam Sauna Room 29",null,2724304470038,null,null,0,0,0,"Not Avaliable غير متوفر"]
["item122","Brand 5","Steam Sauna Room 30",null,2724333672281,null,null,0,0,0,"Not Avaliable غير متوفر"]
["item123","Brand 5","Steam Sauna Room 31",null,2724333672199,null,null,0,0,0,"Not Avaliable غير متوفر"]
["item124","Brand 5","Steam Sauna Room 32",null,6953011700350,null,null,180,0,180,"Avaliable متوفر"]
["item125","Brand 5","Thermometer Digital 1",null,null,null,null,0,0,0,"Not Avaliable غير متوفر"]
["item126","Brand 5","Thermometer Digital 2",8413228080211,null,null,null,951,{"$f":"SUM(L145+N145+P145+R145+T145+V145+X145+Z145+AB145+AD145+AF145+AH145+AJ145+AL145)","v":0},{"$f":"SUM(H145-I145)","v":951},"Avaliable متوفر"]
["item127","Brand 5","Thermometer Digital 3",7502001982789,null,null,null,265,{"$f":"SUM(L146+N146+P146+R146+T146+V146+X146+Z146+AB146+AD146+AF146+AH146+AJ146+AL146)","v":0},265,"Avaliable متوفر"]
["item128","Brand 5","Thermometer Digital 4",6931038630027,null,null,null,30,{"$f":"SUM(L147+N147+P147+R147+T147+V147+X147+Z147+AB147+AD147+AF147+AH147+AJ147+AL147)","v":0},30,"Avaliable متوفر"]
["item129","Brand 5","Thermometer Digital 5",null,null,null,null,70,{"$f":"SUM(L148+N148+P148+R148+T148+V148+X148+Z148+AB148+AD148+AF148+AH148+AJ148+AL148)","v":0},70,{"$f":"IF(J148>1, \"Avaliable متوفر\", IF(J148=0, \"Not Avaliable غير متوفر\", IF(J148<0, \"Missing يوجد نقص\", \"Poor\")))","v":"Avaliable متوفر"}]
["item130","Brand 5","Thermometer Digital 6",null,null,null,null,570,{"$f":"SUM(L149+N149+P149+R149+T149+V149+X149+Z149+AB149+AD149+AF149+AH149+AJ149+AL149)","v":0},570,"Avaliable متوفر"]
["item131","Brand 5","Thermometer Digital 7",null,null,null,null,20,0,20,"Avaliable متوفر"]
["item132","Brand 5","Thermometer Digital 8",6926599006077,null,null,null,29,0,29,"Avaliable متوفر"]
["item133","Brand 5","Thermometer Digital 9",6926599006091,null,null,null,20,0,20,"Avaliable متوفر"]
["item134","Brand 5","Thermometer Digital 10",6988775566423,null,null,null,12,0,12,"Avaliable متوفر"]
["item135","Brand 5","Thermometer Digital 11",6922488512186,null,null,null,9,0,9,"Avaliable متوفر"]
["item136","Brand 5","Thermometer Digital 12",6923643990085,null,null,null,6,0,6,"Avaliable متوفر"]
["item137","Brand 5","Thermometer Digital 13",6924536777110,null,null,null,5,0,5,"Avaliable متوفر"]
["item138","Brand 5","Thermometer Digital",6922488540301,null,null,null,13,0,13,"Avaliable متوفر"]